[Event "Sarajevo-ch 2019"]
[Site "Sarajevo"]
[Date "2019.03.16"]
[Round "6.4"]
[White "Mrndjic, Muamer"]
[Black "Terzic, Ilijas"]
[Result "1-0"]
[ECO "E16"]
[WhiteElo "2246"]
[BlackElo "2137"]
[Annotator "NA"]
[PlyCount "131"]
[EventDate "2019.03.12"]
[EventType "tourn"]
[EventCountry "BIH"]
[SourceTitle "playchess.com"]
[Source "ChessBase"]
[SourceQuality "1"]
[TimeControl "5400+30"]

1. d4 {[%emt 0:00:00] ChessBase} Nf6 {[%emt 0:04:17]} 2. c4 {[%emt 0:00:00]} e6 {[%emt 0:00:06]} 3. Nf3 {[%emt 0:00:00]} Bb4+ {[%emt 0:00:32]} 4. Bd2 {[%emt 0:00:00]} Qe7 {[%emt 0:00:12]} 5. g3 {[%emt 0:00:05]} Nc6 {[%emt 0:00:15]} 6. Bg2 {[%emt 0:00:30]} Bxd2+ {[%emt 0:00:14]} 7. Qxd2 {[%emt 0:00:10]} Ne4 {[%emt 0:00:20]} 8. Qc2 {[%emt 0:12:58]} Qb4+ {[%emt 0:00:55]} 9. Nc3 {[%emt 0:01:02]} Nxc3 {[%emt 0:00:14]} 10. Qxc3 {[%emt 0:00:07]} Qxc3+ {[%emt 0:00:08]} 11. bxc3 {[%emt 0:00:02]} d6 {[%emt 0:01:59]} 12. Nd2 {[%emt 0:03:05] E11: Bogo-Indian} Na5 {[%emt 0:00:20]} 13. Rb1 {[%emt 0:01:23]} Rb8 {[%emt 0:00:15]} 14. Be4 {[%emt 0:02:38]} b6 {[%emt 0:00:43]} 15. Bd3 {[%emt 0:03:44]} Bb7 {[%emt 0:02:31]} 16. O-O {[%emt 0:00:22]} c5 {[%emt 0:02:06]} 17. f4 {[%emt 0:02:51] [#]} Ke7 $146 {[%emt 0:01:29]} ({Predecessor:} 17... Ba6 18. Nb3 Nc6 19. a4 Ke7 {0-1 (67) Correa,A (2345)-Milos,G (2560) Sao Paulo 1995 CBM 047 Extra [ChessBase]}) 18. Nb3 {[%emt 0:07:46]} Nc6 {[%emt 0:00:39]} 19. d5 {[%emt 0:00:28]} Nd8 {[%emt 0:02:54]} 20. e4 {[%emt 0:04:41]} f6 {[%emt 0:01:06]} 21. Nd2 {[%emt 0:02:57]} e5 {[%emt 0:00:48]} 22. a4 {[%emt 0:02:20]} Kd7 {[%emt 0:00:19]} 23. a5 {[%emt 0:00:27]} Kc7 {[%emt 0:00:06]} 24. axb6+ {[%emt 0:01:46]} axb6 {[%emt 0:00:08]} 25. Nf3 {[%emt 0:00:04]} Nf7 {[%emt 0:00:14]} 26. Rf2 {[%emt 0:05:09]} Bc8 {[%emt 0:00:15]} 27. Ra2 {[%emt 0:00:06]} Bd7 {[%emt 0:00:13]} 28. Rba1 {[%emt 0:00:42]} Rhe8 {[%emt 0:02:53]} 29. f5 {[%emt 0:02:48]} Bc8 {[%emt 0:00:29]} 30. Bc2 {[%emt 0:00:40]} Bb7 {[%emt 0:00:19]} 31. Ba4 {[%emt 0:05:58]} Red8 {[%emt 0:00:11]} 32. Bb5 {[%emt 0:02:03]} Ra8 {[%emt 0:00:31]} 33. Rxa8 {[%emt 0:05:47]} Rxa8 {[%emt 0:00:15]} 34. Rxa8 {[%emt 0:00:05]} Bxa8 {[%emt 0:00:06]} 35. Kf2 {[%emt 0:01:52]} Bb7 {[%emt 0:00:19]} 36. h4 {[%emt 0:00:50]} Bc8 {[%emt 0:00:16]} 37. g4 {[%emt 0:00:16]} Kd8 {[%emt 0:01:20]} 38. Kg3 {[%emt 0:01:17]} Ke7 {[%emt 0:00:26]} 39. Ne1 {[%emt 0:02:35]} h6 {[%emt 0:01:36]} 40. Nf3 {[%emt 0:01:29]} Bd7 {[%emt 0:00:41]} 41. Nd2 {[%emt 0:05:31]} Nd8 {[%emt 0:01:26]} 42. Kf3 {[%emt 0:07:10]} Nb7 {[%emt 0:04:56]} 43. Bxd7 {[%emt 0:05:11]} Kxd7 {[%emt 0:01:33]} 44. Ke3 {[%emt 0:00:28]} Na5 {[%emt 0:03:27]} 45. Kd3 {[%emt 0:00:08]} Kc7 {[%emt 0:01:02]} 46. Nf3 {[%emt 0:01:30]} Kd7 {[%emt 0:01:32]} 47. Nd2 {[%emt 0:04:03]} Kc7 {[%emt 0:01:39]} 48. Nf1 {[%emt 0:01:02]} Kd7 {[%emt 0:00:12]} 49. Ne3 {[%emt 0:02:49]} Kc7 {[%emt 0:00:44]} 50. Nf1 {[%emt 0:01:18]} Kd7 {[%emt 0:00:03]} 51. Nd2 {[%emt 0:00:05]} Kc7 {[%emt 0:00:24]} 52. Nf3 {[%emt 0:01:25]} b5 {[%emt 0:00:53]} 53. cxb5 {[%emt 0:00:21]} c4+ {[%emt 0:00:05]} 54. Kc2 {[%emt 0:00:05]} Kb6 {[%emt 0:00:04]} 55. g5 {[%emt 0:00:15]} hxg5 {[%emt 0:00:36]} 56. hxg5 {[%emt 0:00:01]} Nb7 {[%emt 0:00:06]} 57. Kd2 {[%emt 0:00:29]} Nc5 $11 {[%emt 0:00:10]} 58. Ke3 {[%emt 0:00:10]} Kxb5 {[%emt 0:00:43]} 59. g6 {[%emt 0:02:24]} Ka4 {[%emt 0:02:26]} 60. Nd2 {[%emt 0:00:56]} Kb5 {[%emt 0:00:12]} 61. Nf1 {[%emt 0:00:59]} Ka4 {[%emt 0:00:18]} 62. Ng3 {[%emt 0:00:34]} Kb3 {[%emt 0:00:40]} 63. Nh5 {[%emt 0:00:08]} Kxc3 {[%emt 0:00:15]} 64. Nxg7 {[%emt 0:00:16]} Kb2 {[%emt 0:00:16]} 65. Nh5 {[%emt 0:00:16]} c3 {[%emt 0:00:22]} 66. Ng3 {[%emt 0:00:09]} 1-0

[Event "Sarajevo-ch 2019"]
[Site "Sarajevo"]
[Date "2019.03.16"]
[Round "6.5"]
[White "Hadzovic, Amir"]
[Black "Sitnic, Ahmed"]
[Result "1-0"]
[ECO "B01"]
[WhiteElo "2255"]
[BlackElo "1841"]
[Annotator "NA"]
[PlyCount "47"]
[EventDate "2019.03.12"]
[EventType "tourn"]
[EventCountry "BIH"]
[SourceTitle "playchess.com"]
[Source "ChessBase"]
[SourceQuality "1"]
[TimeControl "5400+30"]

1. e4 {[%emt 0:00:00]} d5 {[%emt 0:06:36]} 2. exd5 {[%emt 0:01:04]} Qxd5 {[%emt 0:00:08]} 3. Qf3 {[%emt 0:01:11]} Qxf3 {[%emt 0:01:03]} 4. Nxf3 {[%emt 0:00:05]} Nf6 {[%emt 0:00:15]} 5. g3 {[%emt 0:00:18]} c6 {[%emt 0:00:44]} 6. Bg2 {[%emt 0:00:07]} Bf5 {[%emt 0:00:28]} 7. d3 {[%emt 0:00:07]} Nbd7 {[%emt 0:01:42]} 8. O-O {[%emt 0:00:33]} e6 {[%emt 0:01:16]} 9. Bd2 {[%emt 0:00:31]} Bd6 {[%emt 0:01:26]} 10. Nc3 {[%emt 0:00:55]} O-O {[%emt 0:00:32]} 11. a3 {[%emt 0:00:21]} Nd5 {[%emt 0:05:33]} 12. Rfe1 {[%emt 0:03:33]} h6 {[%emt 0:01:54]} 13. Ne4 {[%emt 0:02:18]} Bc7 {[%emt 0:01:20]} 14. c4 {[%emt 0:03:21]} N5f6 {[%emt 0:03:39]} 15. Bc3 {[%emt 0:01:47]} Rad8 {[%emt 0:14:15]} 16. Bb4 {[%emt 0:10:39]} Rfe8 {[%emt 0:04:17]} 17. Bd6 {[%emt 0:03:36]} Bxe4 {[%emt 0:07:10]} 18. Bxc7 {[%emt 0:00:16]} Rc8 {[%emt 0:00:25]} 19. dxe4 {[%emt 0:00:24]} Rxc7 {[%emt 0:00:08]} 20. e5 {[%emt 0:00:37]} Nh7 {[%emt 0:00:31]} 21. Rad1 {[%emt 0:02:07]} Nhf8 {[%emt 0:03:34]} 22. Nd2 {[%emt 0:02:51]} g5 {[%emt 0:06:36]} 23. Ne4 {[%emt 0:01:52]} Ng6 $2 {[%emt 0:00:43] [#]} (23... b5 $14) 24. Rxd7 $18 {[%emt 0:00:32] Remove Defender, Decoy} 1-0

[Event "Sarajevo-ch 2019"]
[Site "Sarajevo"]
[Date "2019.03.18"]
[Round "7.1"]
[White "Sitnic, Ahmed"]
[Black "Kurtcehajic, Suad"]
[Result "1/2-1/2"]
[ECO "D02"]
[WhiteElo "1841"]
[BlackElo "1982"]
[Annotator "NA RC"]
[PlyCount "100"]
[EventDate "2019.03.12"]
[EventType "tourn"]
[EventCountry "BIH"]
[SourceTitle "playchess.com"]
[Source "ChessBase"]
[SourceQuality "1"]
[TimeControl "5400+30"]

{[%evp 8,82,14,7,9,0,16,10,10,-4,0,-12,8,-28,-2,-12,-15,-17,0,0,0,-3,8,6,14,10,28,21,35,8,36,30,33,22,35,33,42,37,37,38,32767,32767,32767,32767,32767,0,21,0,21,32767,32767,32767,32767,32767,32767,32767,32767,32767,32767,30,28,16,28,0,15,32767,-10,32767,32767,32767,32767,32767,32767,32767,-8,-14,-1]} 1. d4 {[%emt 0:00:50]} d5 {[%emt 0:14:52]} 2. Nf3 {[%emt 0:00:11]} Nf6 {[%emt 0:00:03]} 3. Bf4 {[%emt 0:00:09]} Bf5 {[%emt 0:02:14]} 4. e3 {[%emt 0:01:08]} e6 {[%emt 0:00:04]} 5. Bd3 {[%emt 0:01:55]} Bxd3 {[%emt 0:00:03]} 6. Qxd3 {[%emt 0:00:31]} c6 {[%emt 0:02:53]} 7. h3 {[%emt 0:01:03]} Bd6 {[%emt 0:02:02] D02: 1 d4 d5 2 Nf3 sidelines, including 2...Nf6 3 g3 and 2...Nf6 3 Bf4} (7... Be7 8. O-O Nbd7 9. Nbd2 O-O 10. c4 c5 11. Bh2 Rc8 12. b3 Qa5 13. Rfd1 Rfd8 14. Qe2 Qa6 15. dxc5 Nxc5 16. Nd4 Nce4 17. Nxe4 Nxe4 18. Qf3 {1-0 (43) Vidovic,S (2256)-Zadravec,M (2194) Nedelisce 2018}) 8. Ne5 {[%emt 0:00:23]} Qc7 {[%emt 0:01:02]} 9. Nd2 {[%emt 0:00:42]} Nfd7 {[%emt 0:01:05]} 10. Qb3 $146 {[%emt 0:08:36]} ({Predecessor:} 10. Ndf3 f6 11. Nxd7 Nxd7 12. Bxd6 Qxd6 13. O-O O-O 14. e4 Rfe8 15. Rfe1 dxe4 16. Rxe4 {0-1 (73) Hu,S (1918)-Xu,Y (1717) Hong Kong 2015}) 10... O-O {[%emt 0:11:12]} 11. Ndf3 {[%emt 0:00:39]} Nxe5 {[%emt 0:01:32]} 12. Bxe5 {[%emt 0:02:53]} Nd7 {[%emt 0:01:37]} 13. Bxd6 {[%emt 0:01:44]} Qxd6 {[%emt 0:00:10]} 14. O-O {[%emt 0:00:24]} Rab8 {[%emt 0:13:01]} 15. c4 {[%emt 0:01:27]} dxc4 {[%emt 0:04:41]} 16. Qxc4 {[%emt 0:00:42]} Qd5 {[%emt 0:00:52]} 17. Qa4 {[%emt 0:05:15]} a6 {[%emt 0:02:04]} 18. Rac1 {[%emt 0:02:50]} Rfc8 {[%emt 0:04:57]} 19. Rfd1 {[%emt 0:03:07]} h6 {[%emt 0:04:00]} 20. Qa3 {[%emt 0:01:37]} Re8 {[%emt 0:00:42]} 21. b3 {[%emt 0:05:01]} g5 {[%emt 0:04:45]} 22. Qb2 {[%emt 0:03:32]} Qf5 {[%emt 0:01:49]} 23. Kh2 {[%emt 0:05:31]} Kh7 {[%emt 0:05:20]} 24. Qc2 {[%emt 0:01:48]} Qxc2 {[%emt 0:00:57]} 25. Rxc2 {[%emt 0:00:15]} Rbd8 {[%emt 0:01:29]} 26. Kg3 {[%emt 0:01:39]} Kg7 {[%emt 0:00:30]} 27. Nd2 {[%emt 0:00:30]} Nb6 {[%emt 0:00:30]} 28. Nc4 {[%emt 0:00:30]} Nxc4 {[%emt 0:00:30]} 29. bxc4 {[%emt 0:00:30]} b6 {[%emt 0:00:30]} 30. Rb1 {[%emt 0:00:30]} Rb8 {[%emt 0:00:30]} 31. Rcb2 {[%emt 0:00:30]} b5 {[%emt 0:00:30]} 32. a4 {[%emt 0:00:30]} Rb6 {[%emt 0:00:30]} 33. cxb5 {[%emt 0:00:30]} cxb5 {[%emt 0:00:30]} 34. Kf3 {[%emt 0:00:30]} Kf6 {[%emt 0:00:30]} 35. Rc1 {[%emt 0:00:30]} Reb8 {[%emt 0:00:30]} 36. Rcb1 {[%emt 0:00:30]} b4 {[%emt 0:13:24]} 37. a5 {[%emt 0:14:35]} Rb5 {[%emt 0:00:08]} 38. Ke4 {[%emt 0:01:37]} Rxa5 {[%emt 0:00:18]} 39. Rxb4 {[%emt 0:00:07]} Rxb4 {[%emt 0:00:03]} 40. Rxb4 {[%emt 0:00:09]} Ra2 $11 {[%emt 0:00:07]} 41. Kf3 {[%emt 0:00:08]} a5 {[%emt 0:00:12]} 42. Rb7 {[%emt 0:00:30]} a4 {[%emt 0:00:13]} 43. Ra7 {[%emt 0:00:09]} h5 {[%emt 0:00:52]} 44. Ra8 {[%emt 0:01:13]} a3 {[%emt 0:00:28]} 45. Ra7 {[%emt 0:00:11]} Ra1 {[%emt 0:00:13]} 46. Ra8 {[%emt 0:00:28]} Ke7 {[%emt 0:02:29]} 47. Ra7+ {[%emt 0:00:34]} Ke8 {[%emt 0:00:03]} 48. Ke4 {[%emt 0:01:27]} Kf8 {[%emt 0:02:30]} 49. Ra5 {[%emt 0:01:21]} a2 {[%emt 0:00:19]} 50. Ra7 {[%emt 0:00:05]} Kg7 1/2-1/2

[Event "Sarajevo-ch 2019"]
[Site "Sarajevo"]
[Date "2019.03.18"]
[Round "7.5"]
[White "Halilovic, Fahrudin"]
[Black "Kozarcanin, Sead"]
[Result "1-0"]
[ECO "C72"]
[WhiteElo "2053"]
[BlackElo "2005"]
[Annotator "NA RC"]
[PlyCount "51"]
[EventDate "2019.03.12"]
[EventType "tourn"]
[EventCountry "BIH"]
[SourceTitle "playchess.com"]
[Source "ChessBase"]
[SourceQuality "1"]
[TimeControl "5400+30"]

{[%evp 8,49,33,40,83,70,121,97,88,107,131,111,141,124,212,214,221,226,222,218,229,164,182,177,190,191,185,189,245,266,252,257,323,215,350,357,346,373,526,558,529,513,515,522]} 1. e4 {[%emt 0:00:00]} e5 {[%emt 0:22:56]} 2. Nf3 {[%emt 0:00:00]} Nc6 {[%emt 0:00:12]} 3. Bb5 {[%emt 0:00:00]} a6 {[%emt 0:00:05]} 4. Ba4 {[%emt 0:00:00]} d6 {[%emt 0:00:32]} 5. O-O {[%emt 0:00:02] LiveBook: 1467 Games} g6 {[%emt 0:01:07] C72: Ruy Lopez: Deferred Steinitz: 5 0-0} (5... Bd7 6. c4 Nf6 7. Nc3 Nd4 8. Bxd7+ Qxd7 9. d3 Nxf3+ 10. Qxf3 Be7 11. h3 O-O 12. Be3 c6 13. a4 a5 14. d4 Qc7 15. Rac1 {½-½ (40) Heimann,A (2601)-Vallejo Pons,F (2694) Germany 2019}) 6. d4 {[%emt 0:01:01]} exd4 {[%emt 0:01:54]} 7. Qxd4 {[%emt 0:02:18]} f6 {[%emt 0:02:27]} 8. Qc4 $146 {[%emt 0:21:22]} ({Predecessor:} 8. Qd3 Bd7 9. Nc3 Ne5 10. Nxe5 dxe5 11. Bb3 Bc6 12. Qh3 Bd7 13. Qh4 {0-1 (39) Iordachescu,V (2553)-Efimov,I (2445) Castellaneta 1999}) 8... Bd7 {[%emt 0:03:16] [#]} ({Better is} 8... Qd7 $14) 9. Bb3 $1 {[%emt 0:00:09]} Qe7 {[%emt 0:00:10]} 10. Nc3 {[%emt 0:00:09]} Na5 {[%emt 0:00:36]} (10... Qg7 $16 {keeps fighting.}) 11. Qxc7 {[%emt 0:00:23]} Qd8 {[%emt 0:05:00]} 12. Nd5 {[%emt 0:01:34]} Nxb3 {[%emt 0:01:00]} 13. axb3 {[%emt 0:02:30]} Bc6 {[%emt 0:00:51]} 14. Nd4 {[%emt 0:03:34]} Bxd5 {[%emt 0:04:35]} 15. Qxd8+ {[%emt 0:00:07]} Rxd8 {[%emt 0:00:27]} 16. exd5 {[%emt 0:00:01]} Kf7 {[%emt 0:01:05]} 17. b4 {[%emt 0:05:03]} Bg7 {[%emt 0:07:21]} 18. b5 {[%emt 0:01:43]} axb5 {[%emt 0:00:47]} 19. Nxb5 {[%emt 0:00:12]} Ne7 {[%emt 0:00:07]} 20. c4 {[%emt 0:01:12]} f5 {[%emt 0:00:24]} (20... Rd7 {keeps fighting.} 21. Re1 Nf5) 21. Ra7 {[%emt 0:00:29]} Rd7 {[%emt 0:02:41] [#]} 22. Rxb7 $3 {[%emt 0:00:44]} Rxb7 {[%emt 0:00:37]} (22... Rhd8 $142) 23. Nxd6+ {[%emt 0:00:02] Double Attack} Kf6 {[%emt 0:00:53]} 24. Nxb7 {[%emt 0:00:02]} Rb8 {[%emt 0:00:13]} 25. Nd6 $18 {[%emt 0:06:57]} Rd8 {[%emt 0:03:55]} 26. Bg5+ {[%emt 0:00:40]} 1-0

[Event "Sarajevo-ch 2019"]
[Site "Sarajevo"]
[Date "2019.03.18"]
[Round "8.1"]
[White "Kurtcehajic, Suad"]
[Black "Kozarcanin, Sead"]
[Result "1-0"]
[ECO "C40"]
[WhiteElo "1982"]
[BlackElo "2005"]
[Annotator "NA RC"]
[PlyCount "91"]
[EventDate "2019.03.12"]
[EventType "tourn"]
[EventCountry "BIH"]
[SourceTitle "playchess.com"]
[Source "ChessBase"]
[SourceQuality "1"]
[TimeControl "5400+30"]

1. e4 {[%emt 0:13:44]} e5 {[%emt 0:00:34]} 2. Nf3 {[%emt 0:00:05]} Qe7 {[%emt 0:00:08]} 3. Nc3 {[%emt 0:01:34]} Nf6 {[%emt 0:01:07]} 4. Bc4 {[%emt 0:02:35]} d6 {[%emt 0:00:15]} 5. Ng5 {[%emt 0:02:33]} Be6 {[%emt 0:00:03]} 6. Nxe6 {[%emt 0:01:33]} fxe6 {[%emt 0:00:03]} 7. O-O {[%emt 0:04:56]} Nc6 {[%emt 0:01:37]} 8. a3 {[%emt 0:00:54]} g6 {[%emt 0:12:27]} 9. d3 {[%emt 0:02:42]} Bg7 {[%emt 0:00:17]} 10. b4 {[%emt 0:04:36]} O-O {[%emt 0:02:34]} 11. Bg5 {[%emt 0:03:08]} h6 {[%emt 0:00:27]} 12. Be3 {[%emt 0:01:26]} a6 {[%emt 0:02:18]} 13. f3 {[%emt 0:01:57]} Nh5 {[%emt 0:07:01]} 14. g3 {[%emt 0:02:25]} Kh7 {[%emt 0:01:23]} 15. Ne2 {[%emt 0:06:43]} Rf7 {[%emt 0:02:16]} 16. Kg2 {[%emt 0:02:28]} Raf8 {[%emt 0:00:30]} 17. c3 {[%emt 0:00:30]} g5 {[%emt 0:00:30]} 18. Qb3 {[%emt 0:00:30]} Nd8 {[%emt 0:00:30]} 19. a4 {[%emt 0:00:30]} c6 {[%emt 0:00:30]} 20. Qa2 {[%emt 0:00:30]} Rg8 {[%emt 0:00:30]} 21. Bb3 {[%emt 0:00:30]} Bf8 {[%emt 0:00:30]} 22. Rae1 {[%emt 0:00:30]} d5 {[%emt 0:00:30]} 23. Bc2 {[%emt 0:00:30]} Kh8 {[%emt 0:00:30]} 24. Qb1 {[%emt 0:00:30]} Rfg7 {[%emt 0:00:30]} 25. Nc1 {[%emt 0:00:30]} Qf7 {[%emt 0:00:30]} 26. Nb3 {[%emt 0:00:30]} Nf4+ {[%emt 0:00:30]} 27. Kh1 {[%emt 0:00:30]} Qh5 {[%emt 0:00:30]} 28. Qd1 {[%emt 0:00:30]} Qh3 {[%emt 0:00:30]} 29. Rg1 {[%emt 0:00:30]} g4 {[%emt 0:00:30]} 30. Ref1 {[%emt 0:00:30]} dxe4 {[%emt 0:00:30]} 31. fxe4 {[%emt 0:00:30]} Nf7 {[%emt 0:00:30]} 32. Qd2 {[%emt 0:00:30]} Nh5 {[%emt 0:00:30]} 33. Qg2 {[%emt 0:00:30]} Qxg2+ {[%emt 0:00:30]} 34. Rxg2 {[%emt 0:00:30]} Ng5 {[%emt 0:00:30]} 35. Bxg5 {[%emt 0:00:30]} Rxg5 {[%emt 0:00:30]} 36. Rgf2 {[%emt 0:00:30]} Be7 {[%emt 0:00:30]} 37. Na5 {[%emt 0:00:30]} c5 {[%emt 0:00:30]} 38. b5 {[%emt 0:00:30]} axb5 {[%emt 0:00:30]} 39. axb5 {[%emt 0:00:30]} R5g7 {[%emt 0:00:30]} 40. Bb3 {[%emt 0:00:30]} Rd8 {[%emt 0:00:30]} 41. Bc4 {[%emt 0:00:30]} Bg5 {[%emt 0:00:30]} 42. Rf7 {[%emt 0:00:30]} b6 {[%emt 0:00:30]} 43. Nc6 {[%emt 0:00:30]} Rxf7 {[%emt 0:00:30]} 44. Rxf7 {[%emt 0:00:30]} Ra8 {[%emt 0:00:30]} 45. Nxe5 {[%emt 0:00:30]} Ra1+ {[%emt 0:00:30]} 46. Kg2 {[%emt 0:00:30]} 1-0

[Event "Sarajevo-ch 2019"]
[Site "Sarajevo"]
[Date "2019.03.19"]
[Round "9.1"]
[White "Terzic, Ilijas"]
[Black "Kurtcehajic, Suad"]
[Result "1/2-1/2"]
[ECO "D43"]
[WhiteElo "2137"]
[BlackElo "1982"]
[Annotator "NA"]
[PlyCount "71"]
[EventDate "2019.03.12"]
[EventType "tourn"]
[EventCountry "BIH"]
[SourceTitle "playchess.com"]
[Source "ChessBase"]
[SourceQuality "1"]
[TimeControl "5400+30"]

1. d4 d5 {[%emt 0:00:31]} 2. Nf3 {[%emt 0:10:39]} Nf6 {[%emt 0:00:03]} 3. c4 {[%emt 0:00:40]} e6 {[%emt 0:00:38]} 4. Nc3 {[%emt 0:00:11]} c6 {[%emt 0:00:06]} 5. cxd5 {[%emt 0:00:12]} exd5 {[%emt 0:00:36]} 6. Bg5 {[%emt 0:00:10]} Be7 {[%emt 0:00:42]} 7. e3 {[%emt 0:00:34]} Nbd7 {[%emt 0:07:38]} 8. Bd3 {[%emt 0:00:34]} O-O {[%emt 0:01:39]} 9. Qc2 {[%emt 0:01:00]} h6 {[%emt 0:00:17]} 10. Bh4 {[%emt 0:00:23]} Re8 {[%emt 0:00:05]} 11. O-O {[%emt 0:00:36]} Ne4 {[%emt 0:00:23]} 12. Bxe7 {[%emt 0:02:09]} Qxe7 {[%emt 0:00:06]} 13. Rab1 {[%emt 0:01:08]} b6 {[%emt 0:13:05]} 14. b4 {[%emt 0:01:25]} Bb7 {[%emt 0:03:08]} 15. Qb3 {[%emt 0:02:40]} Ndf6 {[%emt 0:05:01]} 16. a4 {[%emt 0:06:51]} g5 {[%emt 0:02:56]} 17. Bxe4 {[%emt 0:00:41]} Nxe4 {[%emt 0:02:55]} 18. Nxe4 {[%emt 0:00:40]} dxe4 {[%emt 0:02:54]} 19. Nd2 {[%emt 0:07:36]} Rad8 {[%emt 0:05:46]} 20. Rfc1 {[%emt 0:00:41]} Rd6 {[%emt 0:11:05]} 21. Rc3 {[%emt 0:00:59]} Rg6 {[%emt 0:06:05]} 22. Rbc1 {[%emt 0:02:19]} Qe6 {[%emt 0:04:56]} 23. Qc2 {[%emt 0:11:50]} Qd5 {[%emt 0:01:11]} 24. Nc4 {[%emt 0:00:41]} Rge6 {[%emt 0:02:25]} 25. Nd2 {[%emt 0:02:46]} Kg7 {[%emt 0:02:45]} 26. Qb3 {[%emt 0:01:19]} Qxb3 {[%emt 0:01:44]} 27. Nxb3 {[%emt 0:01:58]} Rd8 {[%emt 0:00:48]} 28. b5 {[%emt 0:01:08]} cxb5 {[%emt 0:02:38]} 29. axb5 {[%emt 0:00:29]} Bd5 {[%emt 0:00:03]} 30. Nd2 {[%emt 0:00:50]} Re7 {[%emt 0:05:33]} 31. f3 {[%emt 0:03:26]} f5 {[%emt 0:00:22]} 32. Kf2 {[%emt 0:01:08]} h5 {[%emt 0:01:04]} 33. Nc4 {[%emt 0:01:45]} Bxc4 {[%emt 0:03:29]} 34. Rxc4 {[%emt 0:00:20]} Rd5 {[%emt 0:00:32]} 35. Rb1 {[%emt 0:03:31]} h4 {[%emt 0:05:15]} 36. Rc6 {[%emt 0:00:15]} 1/2-1/2

[Event "Sarajevo-ch 2019"]
[Site "Sarajevo"]
[Date "2019.03.19"]
[Round "9.4"]
[White "Halilovic, Fahrudin"]
[Black "Mrndjic, Muamer"]
[Result "1/2-1/2"]
[ECO "A45"]
[WhiteElo "2053"]
[BlackElo "2246"]
[Annotator "NA"]
[PlyCount "50"]
[EventDate "2019.03.12"]
[EventType "tourn"]
[EventCountry "BIH"]
[SourceTitle "playchess.com"]
[Source "ChessBase"]
[SourceQuality "1"]
[TimeControl "5400+30"]

1. d4 {[%emt 0:00:00]} Nf6 {[%emt 0:00:00]} 2. Bf4 {[%emt 0:00:00]} e6 {[%emt 0:00:00]} 3. e3 {[%emt 0:00:14]} d5 {[%emt 0:01:29]} 4. c3 {[%emt 0:00:08]} b6 {[%emt 0:00:13]} 5. Nd2 {[%emt 0:00:04]} Bb7 {[%emt 0:00:08]} 6. Bd3 {[%emt 0:00:15]} Bd6 {[%emt 0:00:21]} 7. Bg3 {[%emt 0:00:06]} O-O {[%emt 0:00:08]} 8. Ngf3 {[%emt 0:00:07]} c5 {[%emt 0:00:09]} 9. Ne5 {[%emt 0:00:25]} Nc6 {[%emt 0:00:13]} 10. f4 {[%emt 0:00:17]} Ne7 {[%emt 0:00:17]} 11. O-O {[%emt 0:00:15]} Nf5 {[%emt 0:00:07]} 12. Bf2 {[%emt 0:00:27]} Be7 {[%emt 0:00:08]} 13. Qc2 {[%emt 0:00:13]} Nd6 {[%emt 0:00:10]} 14. b3 {[%emt 0:00:36]} Rc8 {[%emt 0:00:09]} 15. Rac1 {[%emt 0:01:01]} cxd4 {[%emt 0:00:41]} 16. exd4 {[%emt 0:00:07]} Nde4 {[%emt 0:00:51]} 17. Nxe4 {[%emt 0:00:09]} dxe4 {[%emt 0:00:10]} 18. Bc4 {[%emt 0:00:57]} Ba3 {[%emt 0:01:15]} 19. Rce1 {[%emt 0:00:25]} a6 {[%emt 0:00:51]} 20. Bh4 {[%emt 0:00:24]} Be7 {[%emt 0:00:15]} 21. a4 {[%emt 0:00:12]} b5 {[%emt 0:01:14]} 22. axb5 {[%emt 0:00:37]} axb5 {[%emt 0:00:08]} 23. Bxb5 {[%emt 0:00:17]} Qxd4+ {[%emt 0:00:12]} 24. cxd4 {[%emt 0:00:15]} Rxc2 {[%emt 0:00:07]} 25. Rf2 {[%emt 0:00:58]} Rfc8 {[%emt 0:00:17]} 1/2-1/2